fUST/lending_fUST_20240307
["ID","MTS","AMOUNT","RATE_DAILY","PERIOD"]
[317362838,1709778643667,-22657.34881844,0.00023,5]
[317362839,1709778643679,-2880.66114387,0.00023,5]
[317362843,1709778646645,-178.26757508,0.00022999,2]
[317362844,1709778646656,-24196.76681372,0.00023,5]
[317362845,1709778646668,-13809.28961665,0.00023,5]
[317362846,1709778646681,-2841.6085167,0.00023,5]
[317362925,1709779832696,-155.0,0.00020892,2]
[317362927,1709779832708,-516.4721301,0.00020893,2]
[317362929,1709779832719,-152.89877124,0.000209,2]
[317362931,1709779832732,-173.272969,0.0002109,2]
[317362933,1709779832743,-181.245409,0.00021224,2]
[317362936,1709779832755,-182.62308,0.0002127,2]
[317362938,1709779832766,-8242.71882646,0.00021999,2]
[317362940,1709779832778,-379.0,0.00022,2]
[317362942,1709779832790,-875.30218491,0.00022189,2]
[317362957,1709779832912,-150.0,0.0002219,2]
[317362959,1709779832930,-379.0,0.00022192,2]
[317362961,1709779832940,-379.0,0.00022466,2]
[317362964,1709779832950,-581.0,0.000225,2]
[317362965,1709779832959,-310.8409548,0.000225,2]
[317362968,1709779832968,-231.8753485,0.000225,2]
[317362969,1709779832978,-153.0,0.000225,2]
[317362971,1709779832988,-5000.0,0.0002265,2]
[317362973,1709779832997,-5000.0,0.0002265,2]
[317362975,1709779833008,-5000.0,0.0002265,2]
[317362977,1709779833017,-5591.03696551,0.0002265,2]
[317362979,1709779833026,-379.0,0.0002274,2]
[317362981,1709779833035,-1000.0,0.00022762,2]
[317362983,1709779833044,-2152.40678316,0.00022802,2]
[317362985,1709779833053,-5000.0,0.00022802,2]
[317362987,1709779833062,-5000.0,0.00022802,2]
[317362989,1709779833071,-5000.0,0.00022831,2]
[317362991,1709779833081,-5000.0,0.00022831,2]
[317362993,1709779833090,-5000.0,0.00022831,2]
[317362995,1709779833099,-5000.0,0.00022831,2]
[317362997,1709779833108,-5000.0,0.00022831,2]
[317362999,1709779833118,-5000.0,0.00022831,2]
[317363001,1709779833127,-5000.0,0.00022831,2]
[317363003,1709779833136,-1000.0,0.00022849,2]
[317363005,1709779833145,-179.53838164,0.00022899,2]
[317363007,1709779833154,-164.24411895,0.00022899,2]
[317363009,1709779833164,-398.63973864,0.00022899,2]
[317363011,1709779833173,-500.0,0.00022899,2]
[317363013,1709779833183,-200.0,0.00022899,2]
[317363015,1709779833193,-95237.68348964,0.000229,2]
[317363017,1709779833203,-1550.25209986,0.000229,2]
[317363019,1709779833214,-1000.0,0.00022955,2]
[317363021,1709779833223,-268.30386771,0.0002296,2]
[317363023,1709779833234,-183.1726809,0.00022998,2]
[317363025,1709779833243,-155.0,0.00022998,2]
[317363026,1709779833251,-672.22372925,0.00022999,2]
[317363028,1709779833260,-703.71743306,0.00022999,2]
[317363030,1709779833269,-500.0,0.00022999,2]
[317363031,1709779833279,-193.90668794,0.00022999,2]
[317363033,1709779833288,-500.0,0.00022999,2]
[317363035,1709779833300,-166.53658664,0.00022999,2]
[317363036,1709779833309,-373.20102732,0.00022999,2]
[317363037,1709779833320,-566.21489757,0.00022999,3]
[317363038,1709779833329,-97330.07045217,0.00023,5]
[317363054,1709779838657,-649.91999783,0.00023,5]
[317363056,1709779838669,-3985.38761646,0.00023,5]
[317363058,1709779838681,-5264.0643383,0.00023,5]
[317363096,1709779841660,-28139.78891725,0.00023,5]
[317363102,1709779843869,-2795.55872202,0.00023,5]
[317363103,1709779843882,-622.93575481,0.00023,5]
[317363104,1709779843894,-7230.00000004,0.00023,5]
[317363155,1709781031843,-516.4721301,0.00020729,2]
[317363157,1709781031853,-181.245409,0.0002073,2]
[317363158,1709781031863,-234.04454564,0.000209,2]
[317363160,1709781031872,-188.374686,0.00021004,2]
[317363162,1709781031883,-150.0,0.00021998,2]
[317363164,1709781031893,-8242.71882646,0.00021999,2]
[317363165,1709781031903,-1287.40336014,0.00022,2]
[317363167,1709781031912,-251.19446215,0.00022,2]
[317363169,1709781031922,-569.0,0.00022,2]
[317363171,1709781031932,-569.0,0.00022192,2]
[317363173,1709781031942,-289.31689637,0.00022351,2]
[317363175,1709781031951,-500.0,0.00022351,2]
[317363177,1709781031960,-500.0,0.00022351,2]
[317363179,1709781031969,-500.0,0.00022351,2]
[317363181,1709781031978,-500.0,0.00022351,2]
[317363183,1709781031987,-347.15392377,0.00022351,2]
[317363185,1709781031996,-181.96056118,0.00022351,2]
[317363187,1709781032006,-1795.88,0.00022351,2]
[317363188,1709781032015,-1795.88,0.00022351,2]
[317363190,1709781032024,-1795.88,0.00022351,2]
[317363192,1709781032033,-1795.88,0.00022351,2]
[317363193,1709781032043,-1795.88,0.00022351,2]
[317363194,1709781032051,-1795.88,0.00022351,2]
[317363195,1709781032060,-1795.88,0.00022351,2]
[317363196,1709781032070,-500.0,0.00022351,2]
[317363197,1709781032080,-2052.48,0.00022351,2]
[317363198,1709781032089,-500.0,0.00022351,2]
[317363199,1709781032098,-5000.0,0.00022352,2]
[317363200,1709781032107,-5000.0,0.00022352,2]
[317363201,1709781032116,-5000.0,0.00022352,2]
[317363202,1709781032126,-5000.0,0.00022352,2]
[317363203,1709781032135,-5000.0,0.00022352,2]
[317363204,1709781032144,-5000.0,0.00022352,7]
[317363205,1709781032153,-5129.55946453,0.00022352,3]
[317363206,1709781032162,-5000.0,0.00022352,7]
[317363207,1709781032171,-5000.0,0.00022352,7]
[317363208,1709781032181,-5000.0,0.00022352,7]
[317363209,1709781032191,-5000.0,0.00022352,7]
[317363210,1709781032200,-5000.0,0.00022352,7]
[317363211,1709781032211,-5000.0,0.00022352,7]
[317363212,1709781032220,-5000.0,0.00022352,7]
[317363213,1709781032229,-8209.9790838,0.00022352,3]
[317363214,1709781032239,-5000.0,0.00022352,7]
[317363215,1709781032250,-5000.0,0.00022352,7]
[317363216,1709781032259,-5000.0,0.00022352,7]
[317363217,1709781032269,-5000.0,0.00022352,7]
[317363218,1709781032278,-5000.0,0.00022352,7]
[317363219,1709781032288,-5000.0,0.00022352,7]
[317363220,1709781032297,-2442.64432183,0.00022352,3]
[317363221,1709781032307,-5000.0,0.00022352,7]
[317363222,1709781032316,-5000.0,0.00022352,7]
[317363223,1709781032326,-5000.0,0.00022352,7]
[317363224,1709781032335,-153.0,0.00022411,2]
[317363225,1709781032344,-2052.44,0.00022699,2]
[317363226,1709781032353,-500.0,0.00022699,2]
[317363227,1709781032362,-500.0,0.00022699,2]
[317363228,1709781032372,-500.0,0.00022699,2]
[317363229,1709781032381,-487.31640682,0.00022699,2]
[317363230,1709781032391,-209.89654541,0.00022699,2]
[317363231,1709781032401,-500.0,0.00022699,2]
[317363232,1709781032411,-500.0,0.00022699,2]
[317363233,1709781032420,-500.0,0.00022699,2]
[317363234,1709781032429,-500.0,0.00022699,2]
[317363235,1709781032438,-500.0,0.00022699,2]
[317363236,1709781032447,-500.0,0.00022699,2]
[317363237,1709781032457,-500.0,0.00022699,2]
[317363238,1709781032467,-500.0,0.00022699,2]
[317363239,1709781032476,-400.0,0.00022699,2]
[317363240,1709781032485,-466665.85332218,0.000227,2]
[317363241,1709781032496,-1550.42450732,0.000227,2]
[317363242,1709781032505,-1795.88,0.00022799,2]
[317363243,1709781032515,-64425.39370282,0.000228,2]
[317363321,1709781043017,-566.49342458,0.000228,2]
[317363325,1709781046018,-23056.20455211,0.000228,2]
[317363326,1709781046028,-1500.0,0.0002288,2]
[317363327,1709781046037,-1550.42450725,0.00022929,2]
[317363328,1709781046046,-8242.71882646,0.00022975,2]
[317363329,1709781046056,-530.78780935,0.00022999,2]
[317363330,1709781046065,-500.0,0.00022999,2]
[317363331,1709781046074,-500.0,0.00022999,2]
[317363332,1709781046083,-500.0,0.00022999,2]
[317363333,1709781046092,-496.92758179,0.00022999,2]
[317363334,1709781046102,-500.0,0.00022999,2]
[317363335,1709781046111,-500.0,0.00022999,2]
[317363336,1709781046120,-500.0,0.00022999,2]
[317363337,1709781046130,-500.0,0.00022999,2]
[317363338,1709781046139,-221.12148477,0.00022999,2]
[317363339,1709781046148,-500.0,0.00022999,2]
[317363340,1709781046158,-500.0,0.00022999,2]
[317363341,1709781046167,-7173.17406827,0.00023,5]
[317363342,1709781139373,299.09149456,1e-08,30]
[317363343,1709781204189,200.3,0.000199,2]
[317363344,1709781218747,200.13,0.000188,2]
[317363345,1709781230122,200.36,0.000188,2]
[317363346,1709781260631,200.86,0.000155,2]
[317363347,1709781265517,93350.87129606,0.000188,2]
[317363348,1709781275038,200.66,0.000166,2]
[317363349,1709781279504,10381.78228763,0.000188,2]
[317363350,1709781313801,151.36,0.000155,2]
[317363352,1709781376910,220.36,0.000133,2]
[317363354,1709781964275,156.02969709,0.000189,2]
[317363404,1709782238011,-256.16650602,0.00021094,2]
[317363434,1709782243130,-12.91547376,0.00021094,2]
[317363435,1709782243140,-173.272969,0.00021095,2]
[317363436,1709782243149,-188.374686,0.00021323,2]
[317363437,1709782243158,-620.33198043,0.00021876,2]
[317363438,1709782243168,-8242.71882646,0.00021999,2]
[317363439,1709782243177,-200.5,0.00022,2]
[317363440,1709782243187,-426.0,0.00022,2]
[317363441,1709782243196,-426.0,0.00022192,2]
[317363442,1709782243205,-150.0,0.0002235,2]
[317363443,1709782243214,-9509.96199805,0.00022352,3]
[317363444,1709782243224,-2113.35268258,0.00022352,3]
[317363445,1709782243233,-2139.23501695,0.00022352,3]
[317363446,1709782243242,-153.0,0.00022411,2]
[317363447,1709782243251,-6960.12727591,0.000226,2]
[317363453,1709782246164,-5143.26282108,0.000226,2]
[317363454,1709782246173,-259.70365848,0.0002268,6]
[317363455,1709782246182,-588.21632226,0.000229,2]
[317363456,1709782246191,-1240.3396058,0.000229,2]
[317363457,1709782246200,-153.0,0.00022932,2]
[317363458,1709782246210,-153.0,0.00022932,2]
[317363459,1709782246219,-153.0,0.00022932,2]
[317363460,1709782246228,-153.0,0.00022932,2]
[317363461,1709782246237,-153.0,0.00022932,2]
[317363462,1709782246248,-306.8746514,0.00022932,2]
[317363463,1709782246257,-620.01659902,0.0002297,2]
[317363464,1709782246266,-155.0,0.00022998,2]
[317363465,1709782246276,-178.83026323,0.00022999,2]
[317363466,1709782246286,-166.13542977,0.00022999,2]
[317363467,1709782246295,-500.0,0.00022999,2]
[317363468,1709782246304,-503.06796179,0.00022999,2]
[317363469,1709782246313,-189624.361048,0.00023,5]
[317363498,1709783412320,160.0,0.000138,14]
[317363499,1709783412523,160.0,0.00013621,13]
[317363500,1709783412864,160.0,0.00013443,12]
[317363501,1709783413154,160.0,0.00013264,11]
[317363502,1709783413608,160.0,0.00013085,10]
[317363503,1709783413851,160.0,0.00012906,9]
[317363504,1709783414165,160.0,0.00012728,8]
[317363505,1709783414478,160.0,0.00012549,7]
[317363506,1709783415374,160.0,0.0001237,6]
[317363507,1709783415672,160.0,0.00012191,5]
[317363508,1709783415985,160.0,0.00012013,4]
[317363509,1709783416356,160.0,0.00011834,3]
[317363510,1709783416681,179.18693895,0.000138,5]
[317363637,1709783438222,-269.08197978,0.00020899,2]
[317363638,1709783438232,-150.0,0.000209,2]
[317363639,1709783438241,-188.3746874,0.00021224,2]
[317363640,1709783438252,-3369.9192722,0.00021999,2]
[317363662,1709783440470,-4872.79955426,0.00021999,2]
[317363664,1709783440479,-1232.53179722,0.00022,2]
[317363948,1709783443452,-2773.41715718,0.00022,2]
[317364172,1709783446849,-57007.5436427,0.00022,2]
[317364173,1709783446859,-426.0,0.00022,2]
[317364174,1709783446869,-426.0,0.00022192,2]
[317364175,1709783446879,-944.21160222,0.00022352,3]
[317364176,1709783446892,-1567.17273904,0.00022352,3]
[317364177,1709783446903,-1184.15570748,0.00022352,7]
[317365842,1709783471181,182.8742081,0.000199,2]
[317371339,1709783772618,272.8997472,0.000199,2]
[317371341,1709784073924,181.9331648,0.000199,2]
[317371342,1709784134632,35954.9324303,0.00019949,2]
[317371349,1709784375119,150.0,0.000189,2]
[317371356,1709784587362,90473.05274556,0.0002,2]
[317371402,1709784633159,-1473.66141674,0.00020039,2]
[317371404,1709784633169,-269.08197978,0.0002004,2]
[317371406,1709784633178,-166.867524,0.00020581,2]
[317371408,1709784633188,-3446.8352343,0.00020971,2]
[317371410,1709784633198,-253.319862,0.00021014,2]
[317371412,1709784633208,-230.2241858,0.0002103,2]
[317371414,1709784633217,-173.2729705,0.00021152,2]
[317371416,1709784633226,-320.0,0.00022,2]
[317371418,1709784633235,-320.0,0.00022192,2]
[317371419,1709784633247,-150.0,0.00022351,2]
[317371420,1709784633257,-3815.84429252,0.00022352,7]
[317371421,1709784633266,-6609.68444514,0.00022352,3]
[317371422,1709784633276,-154.98450155,0.00022352,2]
[317371423,1709784633286,-5000.0,0.00022352,7]
[317371424,1709784633295,-5000.0,0.00022363,7]
[317371425,1709784633305,-977.88429318,0.00022363,3]
[317371426,1709784633315,-760.02420854,0.00022363,3]
[317371427,1709784633325,-6246.19698817,0.0002268,6]
[317371428,1709784633335,-1116.30564522,0.000229,2]
[317371429,1709784633346,-154.95632605,0.00022975,2]
[317371430,1709784633357,-8059.63586896,0.00022975,2]
[317371431,1709784633367,-537.03397832,0.00022998,2]
[317371432,1709784633377,-291.04826902,0.00022998,2]
[317371433,1709784633387,-181.45528475,0.00022998,2]
[317371434,1709784633398,-277.12481729,0.00022998,2]
[317371435,1709784633408,-156.36677513,0.00022998,2]
[317371436,1709784633419,-213.50359166,0.00022998,2]
[317371437,1709784633429,-1638.87736843,0.00022998,2]
[317371438,1709784633439,-156.66830653,0.00022998,2]
[317371439,1709784633450,-449.69205511,0.00022998,2]
[317371440,1709784633459,-45814.27640277,0.00022998,3]
[317371499,1709784638571,-618.74397105,0.00022998,3]
[317371501,1709784638584,-3929.6698591,0.00022998,3]
[317371504,1709784638596,-3969.89134659,0.00022998,3]
[317371508,1709784638633,-1518.34020742,0.00022998,3]
[317371647,1709784649071,-1189.14690157,0.00022998,3]
[317371648,1709784649084,-2293.25655801,0.00022998,3]
[317371649,1709784649094,-155.03967433,0.00022998,2]
[317371650,1709784649103,-1477.62862362,0.00022998,2]
[317371651,1709784649113,-151.0,0.00022999,2]
[317371652,1709784649123,-151.0,0.00022999,2]
[317371653,1709784649132,-151.0,0.00022999,2]
[317371654,1709784649141,-500.0,0.00022999,2]
[317371655,1709784649151,-202.42326729,0.00022999,2]
[317371656,1709784649160,-264.09713991,0.00022999,2]
[317371657,1709784649169,-500.0,0.00022999,2]
[317371658,1709784649179,-500.0,0.00022999,2]
[317371659,1709784649188,-12955.84988802,0.00023,5]
[317371660,1709784654873,8095.75693602,0.0002,2]
[317371661,1709784661325,155.50516946,0.0002,2]
[317371663,1709785132653,360.90936874,0.0002,2]
[317371664,1709785150518,168.089218,0.00019858,2]
[317371668,1709785256236,1202.96529852,0.00019858,2]
[317371669,1709785259944,155.4543732,0.00019858,2]
[317371670,1709785468776,2844.8765387,0.00019467,2]
[317371671,1709785580523,308.49285262,0.000189,2]
[317371672,1709785659900,216.983056,0.00019492,2]
[317371674,1709785741241,20905.1166433,0.00019492,2]
[317371712,1709785832618,-155.0,0.00020023,2]
[317371713,1709785832627,-269.08197978,0.00020024,2]
[317371714,1709785832636,-150.0,0.00020037,2]
[317371715,1709785832645,-1462.10476486,0.00020038,2]
[317371716,1709785832657,-462.228,0.00020038,2]
[317371717,1709785832677,-71.15530758,0.00020038,2]
[317371718,1709785832686,-368.40969242,0.00020038,2]
[317371719,1709785832698,-4317.41616149,0.00020038,2]
[317371720,1709785832709,-325.14397417,0.00020038,2]
[317371791,1709785838587,-5957.64909485,0.00020038,2]
[317371833,1709785843725,-387.94031011,0.00020038,2]
[317371932,1709785848857,-12134.84053936,0.00020038,2]
[317371933,1709785848874,-300.0,0.000208,2]
[317371934,1709785848889,-3932.10030292,0.00021177,2]
[317371935,1709785848903,-5392.0691,0.00021178,7]
[317371936,1709785848914,-10317.06415772,0.00021182,2]
[317372062,1709785881674,336.30029649,0.00019082,2]
[317372063,1709786165166,874.39114949,0.000198,2]
[317372064,1709786183243,224.20019766,0.00019082,2]
[317372065,1709786352305,505.37210284,0.000199,2]
[317372142,1709787037830,-155.00155002,0.00021181,2]
[317372144,1709787037840,-269.08197978,0.00021181,2]
[317372146,1709787037849,-2568.96707806,0.00021181,2]
[317372173,1709787040717,-1363.13322486,0.00021181,2]
[317372174,1709787040727,-2106.69336522,0.00021182,2]
[317372175,1709787040737,-216.983056,0.00021453,2]
[317372176,1709787040746,-240.0,0.00022,2]
[317372177,1709787040756,-240.0,0.00022192,2]
[317372178,1709787040765,-176.85977321,0.00022273,2]
[317372179,1709787040774,-5000.0,0.00022362,7]
[317372180,1709787040783,-3046.92622625,0.00022362,3]
[317372191,1709787043965,-10507.45380129,0.00022362,3]
[317372205,1709787045920,-1261.42975,0.00022362,3]
[317372206,1709787045932,-3004.73539426,0.00022362,3]
[317372207,1709787045941,-5000.0,0.00022373,7]
[317372208,1709787045950,-153.0,0.0002263,2]
[317372209,1709787045960,-620.31621136,0.00022651,2]
[317372210,1709787045968,-618.24041588,0.000229,2]
[317372211,1709787045979,-1675.8,0.000229,2]
[317372212,1709787053074,12064.34098612,0.000199,2]
[317372215,1709787272961,217.5262115,0.0001968,10]
[317372218,1709787635441,62106.6316195,0.0002,2]
[317372220,1709787849654,260.79582136,0.00027,120]
[317372253,1709788231981,-803.53932349,0.0001998,2]
[317372255,1709788231992,-155.0,0.00019981,2]
[317372256,1709788232002,-269.08197978,0.00019981,2]
[317372258,1709788232012,-1008.96397178,0.00019999,2]
[317372260,1709788232021,-150.0,0.00019999,2]
[317372261,1709788232030,-43727.63150492,0.0002,2]
[317372263,1709788232039,-176.85977321,0.00020898,2]
[317372264,1709788232049,-8920.3866993,0.00020998,2]
[317372266,1709788232058,-3932.10030292,0.00021,2]
[317372268,1709788232067,-210.0,0.00021999,2]
[317372269,1709788232076,-810.0,0.00022,2]
[317372271,1709788232086,-180.0,0.00022,2]
[317372273,1709788232096,-180.0,0.00022192,2]
[317372275,1709788232105,-6708.69293189,0.0002271,2]
[317372276,1709788232115,-200.0,0.000228,2]
[317372278,1709788232125,-396.01619649,0.000228,2]
[317372280,1709788232134,-396.01619649,0.00022825,2]
[317372281,1709788232144,-396.01619649,0.0002285,2]
[317372283,1709788232153,-396.01619649,0.00022875,2]
[317372285,1709788232162,-500.0,0.00022899,2]
[317372287,1709788232171,-500.0,0.00022899,2]
[317372288,1709788232186,-500.0,0.00022899,2]
[317372290,1709788232195,-500.0,0.00022899,2]
[317372292,1709788232205,-500.0,0.00022899,2]
[317372293,1709788232214,-615.84543472,0.00022899,2]
[317372295,1709788232224,-336.63942424,0.00022899,2]
[317372297,1709788232234,-500.0,0.00022899,2]
[317372299,1709788232243,-478.19707052,0.00022899,2]
[317372300,1709788232252,-500.0,0.00022899,2]
[317372302,1709788232262,-491.72395616,0.00022899,2]
[317372304,1709788232272,-500.0,0.00022899,2]
[317372305,1709788232283,-232571.46742011,0.000229,2]
[317372389,1709788240917,-1653.86426022,0.000229,2]
[317372414,1709788243221,-7242.68,0.000229,2]
[317372474,1709789432210,-155.0,0.00020475,2]
[317372475,1709789432220,-269.08197978,0.00020476,2]
[317372476,1709789432229,-128.73761035,0.00020479,2]
[317372574,1709789441073,-373.65455889,0.000189,2]
[317372576,1709789441083,-58.49977665,0.00020479,2]
[317372578,1709789441092,-268.5129417,0.00020738,2]
[317372580,1709789441101,-150.0,0.00020886,2]
[317372582,1709789441110,-2181.41872462,0.00020887,2]
[317372588,1709789441166,-6600.0,0.00020887,2]
[317372853,1709789443812,-10083.75269482,0.00020887,2]
[317372854,1709789443825,-3981.50221776,0.00020887,2]
[317372855,1709789443834,-268.361291,0.00020976,2]
[317372856,1709789443843,-156.0,0.00022,2]
[317372857,1709789443853,-156.0,0.00022192,2]
[317372858,1709789443862,-200.885322,0.00022192,2]
[317372859,1709789443871,-1273.08716982,0.000225,2]
[317372860,1709789443881,-620.495021,0.00022637,2]
[317372861,1709789443890,-653.66897842,0.00022797,2]
[317373100,1709789446341,-176.85977321,0.00020876,2]
[317373103,1709789446356,-346.41930989,0.00022797,2]
[317373105,1709789446369,-154.98450155,0.000229,2]
[317373108,1709789446385,-2477.53187655,0.000229,7]
[317373110,1709789446399,-505.83453973,0.000229,2]
[317378476,1709790633701,-269.08197978,0.0002077,2]
[317378478,1709790633716,-154.93802479,0.00020771,2]
[317378481,1709790633727,-95.97999543,0.000208,2]
[317378484,1709790633744,-153.12304383,0.000208,2]
[317378486,1709790633759,-165.393169,0.00021204,2]
[317378489,1709790633773,-258.0,0.00022,2]
[317378491,1709790633788,-258.0,0.00022192,2]
[317378493,1709790633799,-150.0,0.00022268,2]
[317378496,1709790633814,-153.0,0.000223,2]
[317378498,1709790633827,-153.0,0.000223,2]
[317378500,1709790633839,-153.0,0.000223,2]
[317378503,1709790633854,-15440.72364066,0.00022371,2]
[317378504,1709790633867,-5264.81868927,0.00022372,3]
[317378506,1709790633878,-3254.32870041,0.00022372,3]
[317378508,1709790633894,-10603.27122535,0.0002268,6]
[317378509,1709790633906,-198.00809825,0.000228,2]
[317378510,1709790633919,-8059.63586896,0.00022874,2]
[317378511,1709790633931,-154.95632605,0.00022874,2]
[317378512,1709790633945,-500.0,0.00022898,2]
[317378513,1709790633959,-347.84930725,0.00022898,2]
[317378514,1709790633973,-500.0,0.00022898,2]
[317378515,1709790633987,-500.0,0.00022898,2]
[317378516,1709790634002,-304.78503934,0.00022898,2]
[317378517,1709790634015,-500.0,0.00022898,2]
[317378518,1709790634026,-500.0,0.00022898,2]
[317378519,1709790634037,-500.0,0.00022898,2]
[317378520,1709790634050,-69072.70898416,0.00022899,2]
[317378593,1709790638889,-432.85647337,0.00022899,2]
[317378596,1709790638911,-2126.98666319,0.00022899,2]
[317378598,1709790638923,-2094.76606359,0.00022899,2]
[317378600,1709790638935,-119065.28946582,0.00022899,2]
[317378603,1709790638946,-7792.0766384,0.00022899,2]
[317378605,1709790638958,-15552.37120869,0.00022899,2]
[317378607,1709790638970,-856.33890529,0.00022899,2]
[317378609,1709790638982,-15237.74150434,0.00022899,2]
[317379117,1709790644172,-322.86471929,0.00020799,2]
[317379119,1709790644182,-19038.31568305,0.00022899,2]
[317379131,1709790644292,-3675.44981118,0.00022899,2]
[317379139,1709790644365,-2556.09658286,0.00022899,2]
[317379141,1709790644377,-13177.7,0.00022899,2]
[317392580,1709791367215,3874.47769582,0.0002,7]
[317392581,1709791390691,792.51,0.000208,10]
[317392621,1709791832647,-269.08197978,0.00018798,2]
[317392622,1709791832657,-649.2431342,0.00018798,2]
[317392640,1709791839325,-533.99952897,0.00018798,2]
[317392641,1709791839341,-3884.09326735,0.00018798,2]
[317392642,1709791839353,-10373.38771014,0.00018798,2]
[317392643,1709791839362,-1207.54018048,0.00018799,2]
[317392644,1709791839374,-1784.70762615,0.00018799,2]
[317392645,1709791839382,-74.24276558,0.000189,2]
[317392680,1709791843733,-202.13772904,0.000189,2]
[317392681,1709791843743,-154.95351395,0.00019,2]
[317392682,1709791843754,-227.58005447,0.000208,2]
[317392691,1709791843969,-1270.87290279,0.000208,2]
[317392692,1709791843978,-150.0,0.00021996,2]
[317392693,1709791843988,-2500.96352981,0.00021998,2]
[317392694,1709791843997,-194.0,0.00022,2]
[317392695,1709791844006,-194.0,0.00022192,2]
[317392696,1709791844015,-2274.0635674,0.00022799,2]
[317392706,1709791846707,-33201.6486498,0.00022799,2]
[317392707,1709791846719,-198.00809824,0.000228,2]
[317392708,1709791846731,-37458.78062267,0.00022899,2]
[317392709,1709791846749,-1755.72476602,0.00022899,2]
[317392710,1709791846764,-130141.61074737,0.00022899,2]
[317392711,1709791846781,-155.1588497,0.000229,2]
[317392713,1709791846793,-6000.0,0.0002299,2]
[317392714,1709791846805,-155.45635154,0.00022998,2]
[317392715,1709791846819,-2639.04062782,0.00022998,2]
[317392716,1709791846831,-165.52571142,0.00022998,2]
[317392717,1709791846848,-181.94371783,0.00022998,2]
[317392718,1709791846860,-400.0,0.00022998,2]
[317392719,1709791846872,-537.03397832,0.00022998,2]
[317392720,1709791846885,-291.04826902,0.00022998,2]
[317392721,1709791846897,-181.45528475,0.00022998,2]
[317392722,1709791846909,-277.12481729,0.00022998,2]
[317392723,1709791846922,-156.36677513,0.00022998,2]
[317392724,1709791846935,-213.50359166,0.00022998,2]
[317392725,1709791846947,-1459.64974792,0.00022998,2]
[317392726,1709791846960,-156.66830653,0.00022998,2]
[317392727,1709791846972,-449.69205511,0.00022998,2]
[317392728,1709791846983,-197.84619993,0.00022998,2]
[317392729,1709791846996,-323.15597031,0.00022998,2]
[317392730,1709791847008,-531.94035449,0.00022998,2]
[317392731,1709791847020,-1438.80940692,0.00022999,2]
[317392732,1709791847032,-161.55605539,0.00022999,2]
[317392733,1709791847043,-47485.86650932,0.00022999,3]
[317392734,1709791847055,-500.0,0.00022999,2]
[317392735,1709791847067,-243.49451508,0.00022999,2]
[317392736,1709791847079,-500.0,0.00022999,2]
[317392737,1709791847095,-500.0,0.00022999,2]
[317392738,1709791847107,-500.0,0.00022999,2]
[317392739,1709791847119,-313.34952754,0.00022999,2]
[317392740,1709791847131,-202908.99407412,0.00023,5]
[317392777,1709792842839,1000.0,0.0002,30]
[317392787,1709792940268,13176.29915373,0.00019,4]
[317392788,1709792940292,16751.72962627,0.00019,4]
[317392805,1709793031695,-269.08197978,0.00018893,2]
[317392807,1709793031704,-154.9690062,0.00018894,2]
[317392808,1709793031714,-705.70581975,0.00018895,2]
[317392809,1709793031723,-184.25366308,0.000189,2]
[317392810,1709793031732,-166.666666,0.00020384,2]
[317392811,1709793031742,-278.593046,0.00020737,2]
[317392812,1709793031751,-181.91169304,0.00021848,2]
[317392813,1709793031760,-166.0,0.00022,2]
[317392814,1709793031769,-166.0,0.00022192,2]
[317392815,1709793031778,-2856.61738445,0.000225,2]
[317392816,1709793031787,-303.4968288,0.00022787,2]
[317392817,1709793031795,-150.0,0.00022798,2]
[317392818,1709793031804,-1370.1324053,0.00022799,2]
[317392819,1709793031818,-6891.84612,0.00022799,2]
[317392820,1709793031829,-21115.79065939,0.00022799,2]